bitfinex/quotes_ETHUSD_20260121
["timestamp","ask_amount","ask_price","bid_price","bid_amount"]
[1768976376771,0.002,2992.5,2992.3,7.06110174]
[1768976379251,0.002,2992.5,2992.3,7.61610174]
[1768976379662,4.97668476,2992.5,2992.3,1.665]
[1768976379852,4.97668476,2992.5,2992.3,1.07925482]
[1768976380052,4.97668476,2992.5,2992.3,0.78639868]
[1768976380285,0.002,2992.5,2992.3,0.78639868]
[1768976381784,0.002,2992.5,2992.3,1.34139868]
[1768976383278,0.002,2992.7,2992.3,6.53434358]
[1768976384160,0.002,2992.7,2992.3,7.08934358]
[1768976384698,4.97668476,2992.7,2992.3,7.08934358]
[1768976386623,4.97668476,2992.7,2992.3,7.64434358]
[1768976388513,0.002,2992.5,2992.3,7.64434358]
[1768976388935,0.002,2992.5,2992.3,8.19934358]
[1768976391294,0.002,2992.5,2992.3,8.75434358]
[1768976393421,0.002,2992.5,2992.3,3.56139868]
[1768976393798,0.002,2992.5,2992.3,4.11639868]
[1768976396208,0.002,2992.5,2992.3,4.67139868]
[1768976396518,5.05309369,2992.6,2992.3,4.67139868]
[1768976398700,5.05309369,2992.6,2992.3,5.22639868]
[1768976400030,5.05309369,2992.6,2992.5,0.001]
[1768976400216,5.05309369,2992.6,2992.3,5.22639868]
[1768976401196,5.05509369,2992.7,2992.3,5.78139868]
[1768976401798,5.05509369,2992.7,2992.3,11.03790295]
[1768976402009,0.002,2992.9,2992.4,4.86481527]
[1768976402199,5.60709369,2993.3,2992.5,5.25650427]
[1768976402799,5.60709369,2993.3,2992.6,5.25650427]
[1768976403532,5.60709369,2993.3,2992.6,5.81150427]
[1768976405843,5.60709369,2993.3,2992.6,6.39992002]
[1768976406131,5.60709369,2993.3,2992.7,6.23066246]
[1768976406827,5.05309369,2993.2,2992.7,6.23066246]
[1768976408247,5.05309369,2993.2,2992.8,5.25650427]
[1768976408909,5.05309369,2993.7,2992.8,5.25650427]
[1768976409113,0.552,2993.8,2992.8,5.25650427]
[1768976409328,5.60509369,2993.8,2993.0,5.25650427]
[1768976410750,5.60509369,2993.8,2993.0,5.81150427]
[1768976411852,0.552,2993.8,2993.1,5.25650427]
[1768976412051,5.05509369,2993.9,2993.3,5.25650427]
[1768976412956,0.002,2994.2,2993.9,5.25650427]
[1768976413166,5.05509369,2994.5,2994.0,5.25650427]
[1768976413328,5.05509369,2994.5,2993.9,5.25650427]
[1768976413529,0.002,2994.5,2994.0,5.25650427]
[1768976413757,0.002,2994.5,2994.2,5.25650427]
[1768976413937,0.002,2994.6,2994.2,5.25650427]
[1768976415638,0.002,2994.6,2994.3,5.35761965]
[1768976417959,0.002,2994.6,2994.3,5.91261965]
[1768976418528,0.5520101,2995.2,2994.6,5.35761965]
[1768976418729,0.5520101,2995.2,2994.3,3.89467699]
[1768976418730,5.26466151,2995.1,2994.4,5.35761965]
[1768976418928,5.23125901,2994.9,2994.3,5.91261965]
[1768976420326,5.23125901,2994.9,2994.3,6.46761965]
[1768976420526,5.23125901,2994.9,2994.3,1.11]
[1768976420769,5.81666151,2994.8,2994.3,1.11]
[1768976421063,5.23125901,2994.6,2994.3,1.11]
[1768976421265,5.23125901,2994.6,2994.3,1.01288069]
[1768976421471,5.23125901,2994.6,2994.3,0.87880853]
[1768976421635,5.23125901,2994.6,2994.3,0.77825441]
[1768976422969,5.23125901,2994.6,2994.3,1.33325441]
[1768976423170,5.23125901,2994.4,2994.3,1.33325441]
[1768976424068,5.23125901,2994.4,2994.2,1e-08]
[1768976425474,5.23125901,2994.4,2994.2,0.55500001]
[1768976428067,5.23125901,2994.4,2994.2,1.11000001]
[1768976428384,5.23125901,2994.4,2994.2,1e-08]
[1768976428545,5.23125901,2994.2,2993.6,5.35761965]
[1768976430679,5.23125901,2994.2,2993.6,5.91261965]
[1768976433790,5.23125901,2994.2,2993.6,6.46761965]
[1768976436302,5.23125901,2994.2,2993.7,5.39102313]
[1768976436516,0.552,2994.2,2993.7,5.39102313]
[1768976436670,0.552,2994.2,2993.9,5.35761965]
[1768976436873,5.23125901,2994.3,2993.9,5.35761965]
[1768976437181,5.78325901,2994.5,2993.9,5.35761965]
[1768976438572,5.78325901,2994.5,2993.9,5.91261965]
[1768976440699,0.552,2994.4,2993.9,5.91261965]
[1768976440908,5.78325901,2994.4,2993.9,5.91261965]
[1768976441077,5.78325901,2994.4,2993.9,6.46761965]
[1768976442207,6.36158491,2994.4,2993.9,1.11]
[1768976442387,6.39498741,2994.4,2993.9,1.11]
[1768976442581,6.39498741,2994.4,2993.9,0.98835178]
[1768976442582,5.23125901,2994.3,2993.9,0.98835178]
[1768976442792,5.23125901,2994.3,2993.9,0.87389429]
[1768976442992,5.23125901,2994.3,2993.9,0.75943536]
[1768976443194,5.23125901,2994.1,2993.9,0.63352882]
[1768976443400,5.23125901,2994.1,2993.9,1.07832232]
[1768976443600,5.23125901,2994.1,2993.9,0.96385934]
[1768976443912,5.23125901,2994.1,2993.9,0.82650197]
[1768976444112,5.23125901,2994.1,2993.9,0.73437594]
[1768976444316,5.23125901,2994.1,2993.9,0.59236121]
[1768976444521,5.86626073,2994.1,2993.9,0.5475882]
[1768976444718,5.86626073,2994.1,2993.8,1e-08]
[1768976445822,5.86626073,2994.1,2993.8,0.55500001]
[1768976446002,5.86626073,2994.1,2993.8,0.52235739]
[1768976446201,5.86626073,2994.1,2993.8,0.51115895]
[1768976446501,5.86626073,2994.1,2993.8,0.50858248]
[1768976447786,6.20834546,2994.4,2993.8,5.94787234]
[1768976448222,6.20834546,2994.4,2993.8,6.50287234]
[1768976448922,6.20834546,2994.4,2993.8,6.50387234]
[1768976450310,5.95287027,2994.3,2993.8,6.50387234]
[1768976450502,5.65634546,2994.3,2993.8,6.50387234]
[1768976450707,5.65634546,2994.3,2993.8,7.05887234]
[1768976451897,5.65634546,2994.3,2993.9,5.43928986]
[1768976453216,5.65634546,2994.3,2993.9,5.99428986]
[1768976456031,5.65634546,2994.3,2993.9,6.52178005]
[1768976456198,5.65634546,2994.3,2993.9,6.32660584]
[1768976456400,5.65634546,2994.3,2993.9,6.21654377]
[1768976458457,5.65634546,2994.3,2993.9,5.91991373]
[1768976458638,5.65634546,2994.3,2993.9,6.47491373]
[1768976459628,5.65634546,2994.3,2993.9,6.39221729]
[1768976459955,6.27718001,2994.3,2993.9,1.60986783]
[1768976460113,6.27718001,2994.3,2993.9,1.47203624]
[1768976460314,6.27718001,2994.3,2993.9,1.32041963]
[1768976460520,6.27718001,2994.3,2993.9,1.18258457]
[1768976460727,5.65634546,2994.1,2993.9,1.09988271]
[1768976460923,5.65834546,2994.1,2993.9,1.58595617]
[1768976461112,0.002,2994.1,2993.9,1.58595617]
[1768976461336,0.002,2994.3,2994.1,5.43928986]
[1768976463324,0.002,2994.3,2994.1,5.99428986]
[1768976463525,0.002,2994.3,2994.1,6.75231446]
[1768976464017,6.21034546,2994.7,2994.2,5.43928986]
[1768976464254,0.554,2994.7,2994.2,5.43928986]
[1768976464421,0.002,2994.7,2994.2,5.43928986]
[1768976465551,5.65834546,2994.7,2994.2,5.43928986]
[1768976465754,5.65834546,2994.7,2994.2,5.99428986]
[1768976467330,6.27958001,2994.7,2994.2,0.555]
[1768976468267,6.27958001,2994.7,2994.2,1.11]
[1768976470565,6.27958001,2994.7,2994.2,1.665]
[1768976470734,5.65834546,2994.7,2994.2,1.665]
[1768976472872,5.65634546,2994.4,2994.2,1.665]
[1768976473090,5.65834546,2994.5,2994.2,2.22]
[1768976474790,5.65834546,2994.5,2994.2,2.20514458]
[1768976475086,5.65834546,2994.5,2994.2,2.14572221]
[1768976475290,5.65834546,2994.5,2994.2,2.67063903]
[1768976477891,0.552,2994.4,2994.2,3.22563903]
[1768976478362,0.552,2994.4,2994.2,3.17332931]
[1768976478702,0.552,2994.4,2994.2,3.09926385]
[1768976478872,0.552,2994.4,2994.2,3.06963748]
[1768976479067,0.552,2994.4,2994.2,2.99557104]
[1768976479266,6.23841179,2994.4,2994.2,2.92150395]
[1768976479467,6.23841179,2994.4,2994.2,2.81735299]
[1768976479671,6.23841179,2994.4,2994.2,2.77291201]
[1768976479867,6.23841179,2994.4,2994.2,2.72847074]
[1768976480071,6.23841179,2994.4,2994.2,2.6692153]
[1768976480277,6.23841179,2994.4,2994.2,3.12006232]
[1768976480593,6.86245297,2994.4,2994.1,0.54746328]
[1768976480792,6.86245297,2994.4,2993.9,1.58595617]
[1768976482670,6.86245297,2994.4,2993.9,2.14095617]
[1768976484005,5.68641179,2994.1,2993.6,1.665]
[1768976484204,5.68641179,2993.9,2993.6,1.665]
[1768976484391,5.68641179,2993.9,2993.3,0.55488872]
[1768976485208,5.68641179,2993.8,2993.0,0.55498147]
[1768976485501,5.68641179,2993.8,2993.0,6.1905232]
[1768976485699,5.68641179,2993.6,2993.0,6.1905232]
[1768976485884,6.23841179,2993.5,2993.0,6.1905232]
[1768976487800,6.23841179,2993.5,2993.0,6.7455232]
[1768976488310,0.552,2993.5,2993.0,6.7455232]
[1768976490302,0.552,2993.5,2993.1,5.63554173]
[1768976492811,0.552,2993.5,2993.1,6.19054173]
[1768976495134,6.23841179,2993.5,2993.1,6.19054173]
[1768976495330,6.23841179,2993.5,2993.1,6.74554173]
[1768976496317,6.23841179,2993.5,2993.3,0.001]
[1768976496611,6.23841179,2993.5,2993.1,6.74554173]
[1768976497011,6.23841179,2993.5,2993.1,1.11]
[1768976497187,6.86225297,2993.5,2993.1,1.11]
[1768976497892,6.86225297,2993.5,2993.1,1.665]
[1768976499339,0.552,2993.5,2993.2,5.63554173]
[1768976500131,0.552,2993.5,2993.2,6.19054173]
[1768976500429,0.552,2993.6,2993.2,6.19054173]
[1768976500626,0.552,2993.7,2993.3,5.66894967]
[1768976500929,0.552,2993.7,2993.3,5.63554173]
[1768976501110,5.68641179,2993.7,2993.3,5.63554173]
[1768976501498,6.23841179,2993.7,2993.3,5.63554173]
[1768976502234,0.552,2993.7,2993.3,5.66894967]
[1768976502434,0.552,2993.7,2993.5,5.63554173]
[1768976503345,5.68641179,2994.1,2993.5,5.63554173]
[1768976503653,0.552,2993.8,2993.5,5.63554173]
[1768976505347,6.19975649,2993.8,2993.5,0.555]
[1768976505647,6.19975649,2993.8,2993.3,0.555]
[1768976507847,6.19975649,2993.8,2993.3,0.556]
[1768976508051,6.19975649,2993.8,2993.3,1.111]
[1768976508251,0.002,2993.6,2993.3,1.111]
[1768976509628,5.91981943,2993.6,2993.3,1.111]
[1768976509947,6.56720137,2993.6,2993.3,0.69111123]
[1768976510149,6.56720137,2993.6,2993.2,0.555]
[1768976510313,5.91981943,2993.6,2993.3,0.555]
[1768976510822,5.91981943,2993.6,2993.2,0.555]
[1768976511866,0.002,2993.6,2993.2,4.45180366]
[1768976512952,0.002,2993.6,2993.3,3.91641711]
[1768976515368,0.002,2993.6,2993.3,4.47141711]
[1768976517961,0.002,2993.6,2993.3,5.02641711]
[1768976518162,0.002,2993.6,2993.4,3.93706017]
[1768976518971,0.002,2993.6,2993.3,1.11]
[1768976519273,0.002,2993.6,2993.3,5.05023454]
[1768976520171,0.002,2993.4,2993.3,5.05023454]
[1768976520363,0.002,2993.4,2993.3,5.60523454]
[1768976521257,0.002,2993.4,2993.3,1.665]
[1768976521460,5.91582347,2993.7,2993.3,5.61136381]
[1768976521967,6.56280582,2993.7,2993.2,1.11]
[1768976522163,6.56280582,2993.7,2992.8,0.001]
[1768976522164,7.02781942,2993.1,2992.8,0.001]
[1768976522353,5.91781943,2993.0,2992.6,1.11]
[1768976522957,1.66199999,2993.1,2992.6,6.56671486]
[1768976523142,7.57981942,2993.1,2992.6,6.56671486]
[1768976523345,1.66199999,2993.1,2992.6,6.56671486]
[1768976523578,5.91781943,2993.0,2992.6,6.56671486]
[1768976523758,5.91781943,2993.0,2992.6,1.11]
[1768976525447,5.91781943,2993.0,2992.7,1.11]
[1768976527981,5.91781943,2993.0,2992.7,1.665]
[1768976528366,5.91781943,2993.0,2992.7,1.00613233]
[1768976528567,6.56480137,2993.0,2992.7,0.48347832]
[1768976528768,6.56480137,2993.0,2992.3,5.78139868]
[1768976528769,6.00213738,2992.6,2992.3,5.78139868]
[1768976528968,6.00213738,2992.6,2992.3,2.43462716]
[1768976529170,6.00213738,2992.6,2992.3,2.16929802]
[1768976529380,6.00213738,2992.6,2992.3,1.64662046]
[1768976529606,5.91781943,2992.4,2992.3,1.38528091]
[1768976529805,5.91781943,2992.4,2992.1,1.11]
[1768976530126,5.91781943,2992.4,2992.1,0.4225304]
[1768976530285,5.91781943,2992.4,2992.1,0.71617151]
[1768976530614,5.91781943,2992.4,2992.1,0.4508203]
[1768976530814,5.91781943,2992.4,2992.1,3e-08]
[1768976532817,5.91781943,2992.4,2992.1,0.55500003]
[1768976533120,5.91781943,2992.4,2992.1,0.3942366]
[1768976533415,5.91781943,2992.4,2992.1,3e-08]
[1768976533615,5.91781943,2992.2,2992.1,3e-08]
[1768976535284,5.91781943,2992.2,2991.6,5.45671206]
[1768976537811,5.91781943,2992.2,2991.6,6.01171206]
[1768976540126,5.91781943,2992.2,2991.6,6.56671206]
[1768976541000,5.91781943,2992.2,2991.6,1.11]
[1768976541001,6.56480137,2992.2,2991.6,1.11]
[1768976541400,6.56480137,2992.2,2991.6,6.99439127]
[1768976541603,5.91781943,2992.2,2991.6,6.99439127]
[1768976541902,5.91781943,2992.2,2991.6,1.11]
[1768976542502,5.91781943,2992.2,2991.6,7.54939127]
[1768976545062,5.91781943,2992.2,2991.8,0.002]
[1768976545220,5.91781943,2992.2,2991.6,8.10439127]
[1768976545549,5.95122193,2992.2,2991.6,8.10439127]
[1768976545744,6.60154412,2992.2,2991.6,1.82784005]
[1768976545954,6.60154412,2992.2,2991.6,1.27487506]
[1768976545955,6.56814162,2992.2,2991.6,1.27487506]
[1768976546118,6.03866162,2992.0,2991.6,1.01342495]
[1768976546321,6.03866162,2992.0,2991.6,0.62124873]
[1768976546717,5.74446162,2992.0,2991.6,0.62124873]
[1768976547033,5.74446162,2992.0,2991.6,0.48652474]
[1768976547228,5.74446162,2992.0,2991.6,0.19498988]
[1768976547425,6.03866162,2992.2,2991.6,6.63438115]
[1768976548533,6.07206412,2992.2,2991.6,0.74998988]
[1768976548744,6.03866162,2992.0,2991.6,0.74998988]
[1768976549247,6.03866162,2992.0,2991.5,1e-08]
[1768976549559,6.03866162,2991.8,2991.5,1e-08]
[1768976549756,6.03866162,2991.8,2991.4,1e-08]
[1768976552142,6.03866162,2991.8,2991.4,0.55500001]
[1768976552565,6.03866162,2991.8,2991.4,1e-08]
[1768976554660,6.03866162,2991.8,2991.4,0.55500001]
[1768976555341,6.07206412,2991.8,2991.4,1e-08]
[1768976556264,6.03866162,2991.8,2991.4,1e-08]
[1768976557039,6.03866162,2991.8,2991.4,0.55500001]
[1768976557240,6.03866162,2991.8,2991.6,0.002]
[1768976557435,6.73113028,2991.8,2991.4,0.55500001]
[1768976557635,6.69772778,2991.8,2991.4,0.42427676]
[1768976557875,6.69772778,2991.8,2991.4,0.00200004]
[1768976558165,6.69772778,2991.8,2991.2,5.88439127]
[1768976558377,6.03866162,2991.8,2991.2,5.88439127]
[1768976559266,6.07206412,2991.8,2991.2,5.88439127]
[1768976559493,6.07206412,2991.8,2991.2,6.43939127]
[1768976560286,6.03866162,2991.5,2991.0,1.665]
[1768976560585,6.03866162,2991.3,2990.7,5.88439127]
[1768976561961,6.03866162,2991.3,2990.7,6.43939127]
[1768976564594,6.03866162,2991.3,2990.7,6.99439127]
[1768976566191,6.00866162,2991.3,2990.7,6.99439127]
[1768976567091,6.00866162,2991.3,2990.8,6.06993633]
[1768976568381,6.9672192,2991.4,2990.8,6.06993633]
[1768976568585,4.83775048,2991.8,2990.8,6.06993633]
[1768976568586,6.4152192,2991.9,2990.8,6.84342996]
[1768976568765,0.553,2991.8,2990.8,6.84342996]
[1768976569096,6.9682192,2991.8,2990.9,6.06993633]
[1768976569591,6.9682192,2991.8,2990.9,6.62493633]
[1768976569792,6.9682192,2991.8,2991.0,6.06993633]
[1768976569995,0.553,2991.8,2991.0,6.06993633]
[1768976570195,0.001,2991.6,2991.0,6.06993633]
[1768976571888,0.001,2991.6,2991.0,6.62493633]
[1768976573691,0.001,2991.6,2991.1,6.06993633]
[1768976573896,0.001,2991.6,2991.3,6.06993633]
[1768976574300,0.001,2991.6,2991.3,6.62493633]
[1768976574602,6.28179132,2992.2,2991.5,6.06993633]
[1768976574896,0.002,2992.8,2991.7,6.06993633]
[1768976574897,6.9682192,2992.6,2991.7,6.06993633]
[1768976575089,6.9682192,2992.6,2991.9,6.06993633]
[1768976576695,6.9682192,2992.6,2991.9,6.62493633]
[1768976577204,0.553,2992.6,2991.9,6.62493633]
[1768976577689,0.553,2992.6,2992.0,6.06993633]
[1768976578604,0.002,2993.0,2992.3,6.06993633]
[1768976578808,0.002,2993.0,2992.5,6.06993633]
[1768976578984,0.002,2993.0,2992.5,6.62193633]
[1768976581010,0.002,2993.0,2992.6,6.06993633]
[1768976581314,6.4152192,2993.6,2992.6,6.06993633]
[1768976581476,6.4152192,2993.6,2992.8,6.06993633]
[1768976584013,6.4152192,2993.6,2992.8,6.62493633]
[1768976587112,6.4152192,2993.6,2992.9,6.06993633]
[1768976588605,6.4152192,2993.5,2992.8,1.11]
[1768976588808,6.4152192,2993.4,2992.8,1.11]
[1768976589110,6.4152192,2993.2,2992.6,0.555]
[1768976589717,6.9672192,2993.3,2992.6,7.17993633]
[1768976592207,6.9672192,2993.3,2992.7,6.06993633]
[1768976592411,7.98361331,2993.3,2992.7,6.06993633]
[1768976593834,7.98361331,2993.3,2992.6,1.665]
[1768976594720,7.98361331,2993.3,2992.6,2.22]
[1768976595208,7.98361331,2993.3,2992.9,0.001]
[1768976595533,7.98361331,2993.3,2992.6,2.22]
[1768976595702,6.13455128,2993.1,2992.6,2.22]
[1768976596827,6.13455128,2993.1,2992.6,8.23998376]
[1768976597043,6.13455128,2993.1,2992.7,6.01998376]
[1768976598240,6.13455128,2993.1,2992.6,2.775]
[1768976599212,6.13455128,2993.1,2992.6,8.79498376]
[1768976599854,6.98470195,2993.1,2992.6,9.34998376]
[1768976600928,0.85015067,2993.1,2992.7,6.01998376]
[1768976601249,6.13455128,2993.2,2992.6,9.34998376]
[1768976602346,6.13455128,2993.2,2992.6,9.90498376]
[1768976603153,6.13455128,2993.2,2992.7,6.01998376]
[1768976604911,6.13455128,2993.2,2992.7,6.57498376]
[1768976605618,0.002,2993.4,2992.7,6.57498376]
[1768976605925,0.002,2993.6,2992.9,6.01998376]
[1768976606543,0.002,2993.6,2993.2,6.01998376]
[1768976607240,0.002,2993.6,2993.2,6.57498376]
[1768976607958,0.002,2993.6,2993.2,0.555]
[1768976607959,6.13455128,2993.5,2993.2,0.555]
[1768976608363,6.13655128,2993.6,2993.2,0.555]
[1768976608571,6.13655128,2993.6,2993.2,6.57498376]
[1768976609064,6.13655128,2993.6,2993.2,0.555]
[1768976609944,6.13655128,2993.6,2993.2,1.11]
[1768976611379,0.002,2993.6,2993.2,7.12998376]
[1768976611666,0.002,2993.6,2993.4,6.01998376]
[1768976612470,0.002,2993.6,2993.4,6.57498376]
[1768976615066,0.002,2993.6,2993.4,7.12998376]
[1768976616077,6.13655128,2993.8,2993.4,5.94775048]
[1768976616078,8.51464767,2993.7,2993.4,5.94775048]
[1768976616262,3.85814578,2993.7,2993.5,0.59477505]
[1768976616972,6.13655128,2994.2,2993.5,0.59477505]
[1768976617672,6.13655128,2994.2,2993.5,1.70077505]
[1768976618079,6.13655128,2994.2,2993.6,0.41418381]
[1768976619779,6.13655128,2994.2,2993.6,0.41518381]
[1768976619946,6.13655128,2994.2,2993.6,0.97018381]
[1768976620338,6.13455128,2993.9,2993.5,0.555]
[1768976621879,6.13455128,2993.7,2993.2,1.11]
[1768976622042,6.13455128,2993.5,2993.2,1.11]
[1768976622242,6.68655128,2993.5,2993.2,1.665]
[1768976624690,6.13455128,2993.8,2993.3,0.90030449]
[1768976624984,6.68655128,2993.8,2993.3,0.90030449]
[1768976625187,6.68655128,2993.8,2993.2,2.22]
[1768976625366,6.68655128,2993.8,2993.2,3.42264789]
[1768976625764,6.13455128,2993.8,2993.2,3.42264789]
[1768976627711,6.13455128,2993.8,2993.2,3.97764789]
[1768976628888,6.13455128,2993.8,2993.2,3.08614981]
[1768976629990,6.13455128,2993.8,2993.2,3.64114981]
[1768976630713,6.13455128,2993.8,2993.2,4.51387108]
[1768976631408,6.13455128,2993.8,2993.4,0.001]
[1768976631819,6.13455128,2993.8,2993.2,4.20272127]
[1768976632384,6.13455128,2993.8,2993.2,4.75772127]
[1768976633205,6.13455128,2993.8,2993.3,0.47577213]
[1768976634729,6.13455128,2993.8,2993.3,1.03077213]
[1768976637042,6.13455128,2993.8,2993.3,0.555]
[1768976637194,6.13455128,2993.8,2993.3,1.11]
[1768976638345,6.13455128,2993.8,2993.3,0.96131526]
[1768976638523,6.13455128,2993.8,2993.3,0.18839339]
[1768976640126,6.13455128,2993.8,2993.3,0.74339339]
[1768976641029,6.13455128,2993.8,2993.3,1.58332407]
[1768976641191,0.002,2994.2,2993.5,0.83513477]
[1768976641930,6.6144365,2994.2,2993.5,0.83513477]
[1768976642556,6.6144365,2994.2,2993.6,0.83034905]
[1768976643507,0.002,2994.0,2993.6,0.83034905]
[1768976644933,0.002,2994.2,2993.5,0.555]
[1768976645131,0.002,2994.2,2993.8,0.816053]
[1768976646060,0.002,2994.4,2993.8,0.816053]
[1768976646353,0.002,2994.5,2993.8,0.80934126]
[1768976647143,0.002,2994.5,2993.9,0.80934126]
[1768976647316,0.002,2994.5,2994.1,0.80463963]
[1768976649752,0.002,2994.8,2994.1,0.80463963]
[1768976649753,0.002,2994.8,2994.2,0.79523337]
[1768976649954,6.06e-06,2994.8,2994.2,0.79523337]
[1768976652335,6.06e-06,2994.8,2994.3,0.78125047]
[1768976653074,6.61244256,2994.8,2994.3,0.78125047]
[1768976654469,6.61244256,2994.8,2994.3,1.02547552]
[1768976654679,6.61244256,2994.8,2994.3,1.58047552]
[1768976656072,0.002,2994.6,2994.3,1.58047552]
[1768976656579,6.3460982,2994.6,2994.3,0.79922505]
[1768976656779,6.3460982,2994.6,2994.3,0.555]
[1768976657080,6.3460982,2994.6,2994.3,1.11]
[1768976659656,6.3460982,2994.6,2994.3,1.665]
[1768976661967,6.3460982,2994.6,2994.3,1.74399088]
[1768976662289,6.3460982,2994.6,2994.3,1.29806605]
[1768976662595,6.98070863,2994.6,2994.1,0.555]
[1768976664705,6.98070863,2994.6,2994.1,1.11]
[1768976667414,6.98070863,2994.6,2994.1,1.665]
[1768976667712,0.002,2994.4,2994.1,1.665]
[1768976667871,6.3460982,2994.4,2994.1,1.665]
[1768976669014,0.002,2994.6,2994.2,2.50496635]
[1768976669197,0.552,2994.7,2994.3,2.47156845]
[1768976670004,0.552,2994.7,2994.3,3.02656845]
[1768976672012,6.8960982,2994.7,2994.3,3.02656845]
[1768976672312,6.8960982,2994.7,2994.3,3.58156845]
[1768976674813,6.8960982,2994.7,2994.3,4.13656845]
[1768976677492,6.8960982,2994.7,2994.3,4.69156845]
[1768976679392,0.002,2994.5,2994.3,4.69156845]
[1768976680012,0.002,2994.5,2994.3,5.24656845]
[1768976680846,0.002,2994.5,2994.3,2.775]
[1768976682538,0.002,2994.5,2994.3,3.33]
[1768976684840,0.002,2994.5,2994.3,3.885]
[1768976687440,0.002,2994.5,2994.3,6.24625049]
[1768976687738,5.99552097,2994.8,2994.3,6.24625049]
[1768976687739,0.002,2994.9,2994.4,2.36125049]
[1768976687927,0.38816962,2995.0,2994.4,2.47399417]
[1768976688110,0.38816962,2995.0,2994.5,2.4405985]
[1768976688111,0.33934376,2995.0,2994.5,2.4405985]
[1768976689729,0.33934376,2995.0,2994.7,2.43434442]
[1768976689931,0.33934376,2995.0,2994.7,2.68111821]
[1768976690243,6.54753107,2995.2,2994.7,2.68111821]
[1768976692750,6.54753107,2995.2,2994.7,3.23611821]
[1768976695117,6.54753107,2995.2,2994.7,3.79111821]
[1768976697623,6.54753107,2995.2,2994.7,4.34611821]
[1768976698755,1.01e-05,2995.2,2994.8,2.38415076]
[1768976699252,1.01e-05,2995.2,2995.0,2.3786556]
[1768976700131,1.01e-05,2995.2,2995.0,2.9336556]
[1768976702358,1.01e-05,2995.2,2995.0,0.555]
[1768976702555,1.01e-05,2995.2,2994.7,2.46277379]
[1768976702556,1.01e-05,2995.2,2994.7,1.665]
[1768976702852,1.01e-05,2995.2,2994.9,0.001]
[1768976703053,5.99752097,2995.0,2994.9,0.001]
[1768976703465,5.99752097,2995.0,2994.7,1.665]
[1768976703829,5.99752097,2995.0,2994.7,1.36833316]
[1768976704034,5.99752097,2995.0,2994.7,0.74491513]
[1768976704863,0.002,2995.0,2994.7,4.14155422]
[1768976705052,0.002,2995.0,2994.7,1.29991513]
[1768976705355,5.99752097,2995.0,2994.7,1.29991513]
[1768976707521,0.002,2995.0,2994.7,1.85491513]
[1768976708057,5.99752097,2995.0,2994.7,1.85491513]
[1768976710166,5.99752097,2995.0,2994.7,2.40991513]
[1768976712370,5.99752097,2995.0,2994.7,2.96491513]
[1768976713671,0.002,2995.0,2994.7,2.96491513]
[1768976713849,1.01e-05,2995.2,2994.7,6.62994684]
[1768976713850,6.37969262,2995.1,2994.7,6.62994684]
[1768976714038,6.37969262,2995.1,2994.7,6.33335533]
[1768976714239,0.552,2995.1,2994.8,3.5317657]
[1768976714949,0.552,2995.1,2994.8,4.0867657]
[1768976714950,0.47348363,2995.1,2994.8,4.0867657]
[1768976715997,0.30565528,2995.1,2994.8,4.0867657]
[1768976716139,0.30565528,2995.1,2994.8,0.555]
[1768976716339,0.30565528,2995.1,2994.8,4.08182247]
[1768976716539,6.39390107,2995.2,2994.8,4.08182247]
[1768976716756,6.39390107,2995.2,2994.9,0.70467376]
[1768976716955,6.39390107,2995.2,2994.8,0.555]
[1768976717180,6.39390107,2995.2,2994.8,1.11]
[1768976717488,6.39390107,2995.2,2994.9,0.03338972]
[1768976719101,1.01e-05,2995.2,2994.9,3.55409377]
[1768976719241,1.01e-05,2995.2,2994.9,3.52070405]
[1768976719443,1.01e-05,2995.2,2995.0,0.46307041]
[1768976722188,1.01e-05,2995.2,2995.0,1.01807041]
[1768976722975,1.01e-05,2995.2,2995.0,4.52105516]
[1768976724300,1.01e-05,2995.2,2995.0,1.01807041]
[1768976724480,1.01e-05,2995.2,2995.0,1.11]
[1768976724804,1.01e-05,2995.2,2994.8,1.10994439]
[1768976726044,1.01e-05,2995.2,2994.8,1.07986135]
[1768976726558,6.39389097,2995.1,2994.8,1.07986135]
[1768976726759,6.39389097,2995.1,2994.8,1.04977832]
[1768976727057,6.39389097,2995.1,2994.8,1.60477832]
[1768976728269,6.39389097,2995.1,2995.0,0.001]
[1768976728885,7.08848108,2995.1,2995.0,0.001]
[1768976729402,7.08848108,2995.1,2995.0,0.556]
[1768976729608,7.08848108,2995.1,2994.8,1.60475975]
[1768976729903,6.39389097,2995.1,2994.8,1.60475975]
[1768976731079,6.39389097,2995.1,2994.8,1.52624338]
[1768976731822,6.39389097,2995.1,2994.8,2.08124338]
[1768976732980,6.39389097,2995.1,2994.8,1.93380525]
[1768976733206,6.39389097,2995.1,2994.8,1.71865328]
[1768976733380,7.08848108,2995.1,2994.7,1.16343392]
[1768976733913,7.08848108,2995.1,2994.7,1.13335091]
[1768976734575,7.08848108,2995.1,2994.7,1.68835091]
[1768976735274,6.39389097,2995.1,2994.7,1.68835091]
[1768976736802,6.39389097,2995.1,2994.7,2.24335091]
[1768976739845,6.39389097,2995.1,2994.7,2.79835091]
[1768976740433,0.002,2994.9,2994.7,2.79835091]
[1768976740801,6.39589097,2994.9,2994.7,2.79835091]
[1768976741935,6.39589097,2994.9,2994.7,2.62008785]
[1768976742131,6.39589097,2995.1,2994.7,2.73131711]
[1768976743139,6.39589097,2995.1,2994.7,6.25032605]
[1768976744527,6.39589097,2995.1,2994.7,6.80532605]
[1768976745744,0.002,2995.1,2994.8,3.51164752]
[1768976746645,1.01e-05,2995.2,2994.9,3.51158671]
[1768976747008,1.01e-05,2995.2,2994.9,4.06658671]
[1768976749619,1.01e-05,2995.2,2994.9,1.11]
[1768976749824,1.01e-05,2995.2,2994.9,0.96208607]
[1768976750056,1.01e-05,2995.2,2994.9,0.51834366]
[1768976750355,1.01e-05,2995.2,2994.9,2e-08]
[1768976752033,1.01e-05,2995.2,2994.9,0.55500002]
[1768976752250,1.01e-05,2995.2,2994.9,0.48025286]
[1768976752425,1.01e-05,2995.2,2994.9,2e-08]
[1768976753369,0.002,2995.0,2994.9,2e-08]
[1768976754430,0.002,2995.0,2994.9,0.55500002]
[1768976756748,0.002,2995.0,2994.9,1.10840002]
[1768976758549,1.01e-05,2995.2,2994.9,4.59539204]
[1768976759066,1.01e-05,2995.2,2994.9,1.10840002]
[1768976759266,1.01e-05,2995.2,2994.9,1.66340002]
[1768976759766,6.77302515,2995.2,2994.9,1.58865256]
[1768976760082,6.77302515,2995.2,2994.7,3.28631711]